fUSD/lending_fUSD_20250427
["ID","MTS","AMOUNT","RATE_DAILY","PERIOD"]
[359187311,1745789432850,-78587.8746666,0.00019986,2]
[359187312,1745789432859,-2248.7748631,0.00019986,2]
[359187313,1745789432869,-1562.32828189,0.0001999,2]
[359187314,1745789432879,-1562.32828189,0.0001999,2]
[359187315,1745789432888,-1562.32828189,0.0001999,2]
[359187316,1745789432898,-500.0,0.00019999,2]
[359187317,1745789432908,-500.0,0.00019999,2]
[359187318,1745789432918,-300.0,0.00019999,2]
[359187319,1745789432928,-480.0,0.00019999,2]
[359187320,1745789432939,-480.0,0.00019999,2]
[359187321,1745789432950,-391.97225891,0.00019999,2]
[359187322,1745789432959,-480.0,0.00019999,2]
[359187323,1745789432968,-480.0,0.00019999,2]
[359187324,1745789432977,-480.0,0.00019999,2]
[359187325,1745789432986,-480.0,0.00019999,2]
[359187326,1745789432995,-496.55,0.00019999,2]
[359187327,1745789433005,-500.0,0.00019999,2]
[359187328,1745789433014,-480.0,0.00019999,2]
[359187329,1745789433024,-217.71,0.00019999,2]
[359187330,1745789433034,-500.0,0.00019999,2]
[359187331,1745789433043,-500.0,0.00019999,2]
[359187332,1745789433054,-500.0,0.00019999,2]
[359187333,1745789433064,-500.0,0.00019999,2]
[359187334,1745789433073,-480.0,0.00019999,2]
[359187335,1745789433082,-212.97,0.00019999,2]
[359187336,1745789433092,-500.0,0.00019999,2]
[359187337,1745789433101,-557.44,0.00019999,2]
[359187338,1745789433110,-500.0,0.00019999,2]
[359187339,1745789433119,-500.0,0.00019999,2]
[359187340,1745789433129,-500.0,0.00019999,2]
[359187341,1745789433139,-480.0,0.00019999,2]
[359187342,1745789433149,-480.0,0.00019999,2]
[359187343,1745789433158,-480.0,0.00019999,2]
[359187344,1745789433168,-480.0,0.00019999,2]
[359187345,1745789433177,-480.0,0.00019999,2]
[359187346,1745789433187,-480.0,0.00019999,2]
[359187347,1745789433196,-480.0,0.00019999,2]
[359187348,1745789433206,-480.0,0.00019999,2]
[359187349,1745789433216,-521.55,0.00019999,2]
[359187350,1745789433225,-480.0,0.00019999,2]
[359187351,1745789433234,-152.4,0.00019999,2]
[359187352,1745789433244,-480.0,0.00019999,2]
[359187353,1745789433254,-544.3446,0.00019999,2]
[359187354,1745789433263,-9832.77624925,0.0002,2]
[359187355,1745789433273,-2814.33229862,0.0002,2]
[359187356,1745789433283,-1915502.78609079,0.0002,2]
[359187357,1745789433292,-230609.32523716,0.0002,2]
[359187358,1745789433306,-1434.65026821,0.0002,2]
[359187359,1745789433320,-39007.87278304,0.0002,2]
[359187360,1745789433333,-1305.0,0.0002,2]
[359187361,1745789433344,-639.92922859,0.0002,2]
[359187362,1745789433355,-1000.0,0.0002,2]
[359187363,1745789433366,-33164.62099124,0.0002,2]
[359187364,1745789433377,-21609.17502776,0.0002,2]
[359187365,1745789433387,-87466.50471453,0.0002,2]
[359187379,1745789437873,-500.0,0.00019885,2]
[359187381,1745789437883,-196.71235373,0.00019885,2]
[359187383,1745789437892,-500.0,0.00019885,2]
[359187385,1745789437902,-132.66764627,0.00019885,2]
[359187389,1745789437930,-126.95842311,0.00019885,2]
[359187391,1745789437939,-500.0,0.00019885,2]
[359187392,1745789437949,-434.78221351,0.00019885,2]
[359187393,1745789437958,-500.0,0.00019885,2]
[359187394,1745789437967,-500.0,0.00019885,2]
[359187395,1745789437976,-500.0,0.00019885,2]
[359187396,1745789437986,-500.0,0.00019885,2]
[359187397,1745789437995,-500.0,0.00019885,2]
[359187398,1745789438004,-168.00663457,0.00019886,2]
[359187399,1745789438013,-54401.83876905,0.0002,2]
[359187404,1745789440040,-1112.4,0.0002,2]
[359187405,1745789440247,-348.53698894,0.0002,2]
[359187406,1745789440259,-4145.9542937,0.0002,2]
[359187407,1745789440271,-324.95000002,0.0002,2]
[359187408,1745789440283,-943.61994805,0.0002,2]
[359187431,1745789442812,-168.00663456,0.00019893,2]
[359187433,1745789442822,-813.49106168,0.0002,2]
[359187438,1745789442871,-1045.04667108,0.0002,2]
[359187439,1745789443100,-298.50920085,0.0002,2]
[359187467,1745789445911,-168.00663456,0.000199,2]
[359187468,1745789445921,-773.99336544,0.0002,2]
[359187475,1745789498972,2216.88,0.00019014,2]
[359187476,1745789576871,-1912.0,0.0002,4]
[359187477,1745789596107,1076.92,0.00017096,2]
[359187478,1745789596709,-328.12761117,0.0001936,2]
[359187479,1745789599448,-186.75,0.0001936,2]
[359187480,1745789602124,-549.36118791,0.0001936,2]
[359187481,1745789612182,150.0,0.0001932,7]
[359187482,1745789613988,-12.68120092,0.0001936,2]
[359187483,1745789710887,-200.0,0.00019899,2]
[359187484,1745789710922,-100.0,0.00019899,2]
[359187485,1745789710945,-1200.0,0.00019899,2]
[359187486,1745789710968,-2879.14245344,0.000199,2]
[359187487,1745789711069,-200.0,0.000199,2]
[359187488,1745789711130,-4604.38676141,0.000199,2]
[359187489,1745789711152,-1672.64739332,0.000199,2]
[359187490,1745789711173,-928.5093955,0.000199,2]
[359187491,1745789711371,-264.68093839,0.000199,2]
[359187492,1745789711392,-200.0,0.00019936,2]
[359187493,1745789711414,-35.31906161,0.00019969,2]
[359187494,1745789788181,243.11719965,0.00019869,2]
[359187495,1745789792592,1000.0,0.00019391,2]
[359187496,1745789795753,1172.19679668,0.000199,2]
[359187497,1745789822376,300.0,0.00019899,2]
[359187498,1745789836645,500.0,0.00041047,30]
[359187499,1745789910675,830.456,0.00037641,49]
[359187500,1745789957066,8200.85,0.00019311,2]
[359187522,1745790050157,379.3,0.00041095,120]
[359187523,1745790100441,157.75,0.0004,30]
[359187524,1745790100742,157.75,0.0004,30]
[359187529,1745790139842,500.0,0.00040648,30]
[359187530,1745790144883,250.0,0.00017,2]
[359187531,1745790145966,300.0,0.00019,2]
[359187544,1745790221226,400.0,0.0004,120]
[359187546,1745790222343,169.69,0.00041,30]
[359187550,1745790244176,400.0,0.0004,120]
[359187574,1745790334575,426.51,0.00019014,2]
[359187576,1745790341434,337.73,0.00019142,2]
[359187590,1745790413524,1500.0,0.00032877,120]
[359187591,1745790413711,200.0,0.00019168,2]
[359187592,1745790425178,2022.38,0.00019195,2]
[359187593,1745790483048,150.0,0.00019142,2]
[359187594,1745790497103,1973.75,0.00019014,2]
[359187595,1745790565616,1108.44,0.00019014,2]
[359187596,1745790593703,390.99,0.00019142,2]
[359187603,1745790625318,2196.09676,0.00041095,30]
[359187608,1745790631905,-222.144534,0.00019486,2]
[359187609,1745790631915,-200.0,0.00019535,2]
[359187610,1745790631925,-166.53,0.00019584,2]
[359187611,1745790631935,-200.0,0.00019623,2]
[359187612,1745790631945,-190.47,0.00019837,2]
[359187613,1745790631955,-150.0,0.00019863,2]
[359187614,1745790631964,-2552.06797399,0.00019899,2]
[359187615,1745790631976,-573.62278667,0.00019899,2]
[359187616,1745790631987,-879.12344992,0.00019899,2]
[359187617,1745790631997,-300.0,0.00019899,2]
[359187618,1745790632007,-1200.0,0.00019899,2]
[359187619,1745790632016,-37318.82968243,0.000199,2]
[359187620,1745790632034,-1049.40843781,0.000199,2]
[359187621,1745790632082,-2993.45268308,0.000199,2]
[359187622,1745790632091,-180.86678181,0.000199,2]
[359187623,1745790632101,-12428.36591436,0.000199,2]
[359187624,1745790632111,-334.27542711,0.000199,2]
[359187625,1745790632120,-532.69612269,0.000199,2]
[359187626,1745790632129,-856.98382268,0.0001994,2]
[359187627,1745790632138,-500.0,0.00019973,2]
[359187628,1745790632147,-3935.3145,0.00019973,2]
[359187629,1745790632157,-500.0,0.00019985,2]
[359187630,1745790632166,-181.73824857,0.00019985,2]
[359187631,1745790632175,-604.34754946,0.00019985,2]
[359187632,1745790632184,-500.0,0.00019985,2]
[359187633,1745790632194,-500.0,0.00019985,2]
[359187634,1745790632204,-500.0,0.00019985,2]
[359187635,1745790632214,-500.0,0.00019985,2]
[359187636,1745790632223,-11030.15127421,0.00019986,2]
[359187637,1745790632234,-452.95011032,0.00019986,2]
[359187765,1745790637945,-2428.61955236,0.00019986,2]
[359187766,1745790638001,-648.23128458,0.00019986,2]
[359187767,1745790638114,-9175.20597238,0.00019986,2]
[359187768,1745790638129,-2061.61624128,0.00019986,2]
[359187769,1745790638168,-1989.76817615,0.00019986,2]
[359187770,1745790638179,-20438.94400905,0.00019986,2]
[359187782,1745790640139,-10169.12237957,0.00019986,2]
[359187783,1745790640149,-884.1670529,0.00019986,2]
[359187784,1745790640159,-1619.4284312,0.00019986,2]
[359187785,1745790640169,-2121.4260589,0.00019986,2]
[359187786,1745790640179,-229.4904028,0.00019986,2]
[359187787,1745790640189,-300.0,0.00019999,2]
[359187788,1745790640198,-300.0,0.00019999,2]
[359187789,1745790640208,-1000.0,0.00019999,2]
[359187790,1745790640217,-1407.16614931,0.0002,2]
[359187791,1745790640226,-29156.02952532,0.0002,2]
[359187792,1745790640238,-44072.80111553,0.0002,2]
[359187793,1745790640249,-3378.20136511,0.0002,2]
[359187794,1745790640530,-0.48865799,0.0002,2]
[359187795,1745790640542,-392.61197805,0.0002,2]
[359187796,1745790640555,-641.01223463,0.0002,2]
[359187797,1745790640567,-21278.74410741,0.0002,2]
[359187798,1745790640580,-307.57156581,0.0002,2]
[359187799,1745790640593,-506.33549992,0.0002,2]
[359187800,1745790640605,-1118.89330022,0.0002,2]
[359187801,1745790640617,-472.245,0.0002,2]
[359187802,1745790640629,-16307.09760958,0.0002,2]
[359187882,1745790642964,-777.31920329,0.0002,2]
[359187883,1745790643127,-510.09,0.0002,2]
[359187884,1745790643139,-7189.59825592,0.0002,2]
[359187885,1745790643189,-641.07711433,0.0002,2]
[359187886,1745790643303,-1403.12488222,0.0002,2]
[359187887,1745790643319,-503.0,0.0002,2]
[359187891,1745790645850,-299.00431179,0.0002,2]
[359187892,1745790645910,-73433.8472943,0.0002,2]
[359187893,1745790645919,-65564.4315901,0.0002,2]
[359187912,1745790646522,-432.800005,0.0002,2]
[359187925,1745790655657,150.0,0.00019534,7]
[359187926,1745790669735,301.67,0.00026825,120]
[359187927,1745790669954,301.67,0.00029264,120]
[359187928,1745790690293,1069.13,0.00017506,2]
[359187929,1745790728258,1687.63,0.00019247,2]
[359187930,1745790766085,158.21,0.00019014,2]
[359187931,1745790802253,1096.27,0.00019238,2]
[359187932,1745790812543,2000.0,0.00041,45]
[359187933,1745790813375,2000.0,0.0004101,45]
[359187934,1745790813936,2775.5866,0.0004102,45]
[359187935,1745790840793,597.73,0.0001916,2]
[359187936,1745790854707,1000.0,0.00019014,2]
[359187937,1745790871784,622.47187663,0.00041095,30]
[359187938,1745790918194,210.74554787,0.00041096,30]
[359187939,1745790924206,363.49,0.00041095,120]
[359187940,1745790963504,2784.99,0.00019183,2]
[359187941,1745790999214,157.76,0.0004,30]
[359187942,1745791007872,150.042806,0.00041,120]
[359187943,1745791009677,1000.0,0.0004,120]
[359187944,1745791010406,150.042806,0.00041,120]
[359187945,1745791011033,150.042806,0.00041,120]
[359187946,1745791011603,150.042806,0.00041,120]
[359187947,1745791012161,150.042806,0.00041,120]
[359187948,1745791012471,150.042806,0.00041,120]
[359187949,1745791012796,150.042806,0.00041,120]
[359187950,1745791013101,150.042806,0.00041,120]
[359187951,1745791013434,150.042806,0.00041,120]
[359187952,1745791013727,150.042806,0.00041,120]
[359187953,1745791014324,150.042806,0.00041,120]
[359187954,1745791014942,150.042806,0.00041,120]
[359187955,1745791015264,150.042806,0.00041,120]
[359187956,1745791015627,150.042806,0.00041,120]
[359187957,1745791016245,150.042806,0.00041,120]
[359187958,1745791016546,150.042806,0.00041,120]
[359187959,1745791016891,150.042806,0.00041,120]
[359187960,1745791017364,150.042806,0.00041,120]
[359187961,1745791017539,150.042806,0.00041,120]
[359187962,1745791017850,150.042806,0.00041,120]
[359187963,1745791018179,150.042806,0.00041,120]
[359187964,1745791018544,150.042806,0.00041,120]
[359187965,1745791018911,150.042806,0.00041,120]
[359187966,1745791019229,150.042806,0.00041,120]
[359187967,1745791019557,150.042806,0.00041,120]
[359187968,1745791019880,150.042806,0.00041,120]
[359187969,1745791020231,150.042806,0.00041,120]
[359187970,1745791020620,150.042806,0.00041,120]
[359187971,1745791020938,150.042806,0.00041,120]
[359187972,1745791021546,150.042806,0.00041,120]
[359187973,1745791021894,150.042806,0.00041,120]
[359187974,1745791022213,150.042806,0.00041,120]
[359187975,1745791022567,150.042806,0.00041,120]
[359187976,1745791022915,150.042806,0.00041,120]
[359187977,1745791023644,150.042806,0.00041,120]
[359187978,1745791023916,150.042806,0.00041,120]
[359187979,1745791024230,150.042806,0.00041,120]
[359187980,1745791024542,150.042806,0.00041,120]
[359187981,1745791025150,150.042806,0.00041,120]
[359187982,1745791025473,150.042806,0.00041,120]
[359187983,1745791025507,150.042806,0.00041,120]
[359187984,1745791025795,150.042806,0.00041,120]
[359187985,1745791035211,500.0,0.00040545,30]
[359187986,1745791039449,11000.0,0.00019183,2]
[359187987,1745791039770,151.042806,0.00041,120]
[359187988,1745791040878,151.042806,0.00041,120]
[359187989,1745791041692,151.042806,0.00041,120]
[359187990,1745791042376,151.042806,0.00041,120]
[359187991,1745791042999,151.042806,0.00041,120]
[359187992,1745791043630,151.042806,0.00041,120]
[359187993,1745791044342,151.042806,0.00041,120]
[359187994,1745791054152,151.042806,0.0004109,120]
[359187995,1745791066382,208.3102355,0.00041,120]
[359187996,1745791071053,151.042806,0.0004109,120]
[359187997,1745791071981,151.042806,0.0004109,120]
[359187998,1745791072605,151.042806,0.0004109,120]
[359187999,1745791073183,151.042806,0.0004109,120]
[359188000,1745791073798,151.042806,0.0004109,120]
[359188002,1745791096781,23900.0,0.00019252,2]
[359188003,1745791137200,2721.0731261,0.00041096,30]
[359188004,1745791160679,1000.0,0.00041096,30]
[359188005,1745791215614,160.271281,0.0002,5]
[359188006,1745791230055,-151.15247333,0.00019424,2]
[359188007,1745791235145,-98.84752667,0.00019424,2]
[359188008,1745791235171,-51.15247333,0.00019467,2]
[359188009,1745791241818,-148.84752667,0.00019467,2]
[359188010,1745791241845,-101.15247333,0.00019509,2]
[359188011,1745791249825,-200.51752667,0.00019509,2]
[359188012,1745791249849,-200.0,0.00019697,2]
[359188013,1745791249871,-31.65,0.0001977,2]
[359188014,1745791255156,-250.0,0.0001977,2]
[359188015,1745791259121,-300.0,0.0001977,2]
[359188016,1745791333131,1000.0,0.00041096,30]
[359188017,1745791348527,1000.0,0.00041096,30]
[359188018,1745791363238,1000.0,0.00041096,30]
[359188019,1745791381012,1000.0,0.00041096,30]
[359188020,1745791405433,600.0,0.00041096,30]
[359188021,1745791478409,150.0,0.00019206,2]
[359188022,1745791485335,6100.6,0.00019206,2]
[359188023,1745791509638,1810.81725178,0.00041095,120]
[359188024,1745791513458,1500.0,0.00032877,120]
[359188025,1745791579290,500.0,0.00019195,2]
[359188026,1745791581871,300.0,0.00019168,2]
[359188027,1745791654086,1015.39,0.00019168,2]
[359188028,1745791699521,200.0,0.00019168,2]
[359188029,1745791750680,183.39,0.00019195,2]
[359188030,1745791750907,183.39,0.00028793,120]
[359188036,1745791793750,150.0,0.00019141,7]
[359188037,1745791819869,554.22,0.00019169,2]
[359188038,1745791825336,250.0,0.00019169,2]
[359188045,1745791832056,-828.63222964,0.00019598,2]
[359188046,1745791832066,-156.64300103,0.0001977,2]
[359188047,1745791832075,-151.0,0.0001977,2]
[359188048,1745791832084,-151.0,0.0001977,2]
[359188049,1745791832094,-487.48,0.0001977,2]
[359188050,1745791832103,-232.35698617,0.00019797,2]
[359188051,1745791832114,-596.27524347,0.00019797,2]
[359188052,1745791832124,-32.88176506,0.00019889,2]
[359188053,1745791832281,-738.8269785,0.00019889,2]
[359188211,1745791834812,449.32,0.00019141,2]
[359188218,1745791838057,-428.29125644,0.00019889,2]
[359188219,1745791838066,-25381.71729412,0.0001989,2]
[359188220,1745791838076,-664.365,0.00019891,2]
[359188221,1745791838086,-8238.1527174,0.00019891,2]
[359188222,1745791838097,-4261.8472826,0.00019891,2]
[359188223,1745791838106,-500.0,0.00019899,2]
[359188224,1745791838115,-500.0,0.00019899,2]
[359188225,1745791838124,-500.0,0.00019899,2]
[359188226,1745791838134,-500.0,0.00019899,2]
[359188227,1745791838143,-173.04328462,0.00019899,2]
[359188228,1745791838152,-3210.2586,0.000199,2]
[359188229,1745791838162,-12500.0,0.000199,2]
[359188230,1745791838171,-5000.0,0.000199,2]
[359188231,1745791838180,-7633.05683083,0.000199,2]
[359188232,1745791838189,-21152.23939239,0.000199,2]
[359188233,1745791838231,348.35,0.00041095,120]
[359188234,1745791838244,-557.5,0.000199,2]
[359188235,1745791838256,-476.43552863,0.000199,2]
[359188236,1745791838339,-26103.48091308,0.000199,2]
[359188237,1745791838350,-1383.69195455,0.000199,2]
[359188238,1745791838360,-268.65075565,0.000199,2]
[359188239,1745791838370,-463.29456544,0.000199,2]
[359188240,1745791838380,-514.93958518,0.000199,2]
[359188241,1745791838389,-187.4248974,0.00019973,2]
[359188242,1745791838399,-1434.475743,0.00019986,2]
[359188243,1745791838409,-37368.7319999,0.00019986,2]
[359188244,1745791838419,-19617.1938445,0.00019986,2]
[359188245,1745791838429,-3300.3885751,0.00019986,2]
[359188246,1745791838438,-209.309329,0.00019986,2]
[359188247,1745791838448,-833.4747323,0.00019986,2]
[359188248,1745791838458,-300.0,0.00019999,2]
[359188249,1745791838472,-7683.52921485,0.00019999,2]
[359188251,1745791838482,-159.03607938,0.00019999,2]
[359188253,1745791838492,-400.0,0.00019999,2]
[359188255,1745791838501,-1591.52379737,0.0002,2]
[359188257,1745791838510,-10456.43310075,0.0002,2]
[359188296,1745791840357,-33183.0653079,0.0002,2]
[359188298,1745791840369,-8956.38412251,0.0002,2]
[359188466,1745791843293,-2133.53508808,0.0002,2]
[359188474,1745791846051,-452.68036065,0.0002,2]
[359188475,1745791846064,-9416.8,0.0002,2]
[359188476,1745791846115,-64386.56534888,0.0002,2]
[359188477,1745791846231,-11866.38010071,0.0002,2]
[359188478,1745791846291,-942.0,0.0002,2]
[359188479,1745791846354,-474.341,0.0002,2]
[359188481,1745791892824,466.194459,0.00041,30]
[359188482,1745791893125,466.194459,0.0002,5]
[359188483,1745791893411,466.194459,0.0002,5]
[359188484,1745791893762,466.194459,0.0002,5]
[359188485,1745791894040,466.194459,0.00019999,5]
[359188486,1745791894335,466.194459,0.00019999,5]
[359188487,1745791896922,466.194459,0.00038552,60]
[359188488,1745791897217,466.194459,0.00036,60]
[359188489,1745791898602,466.194459,0.0004102,45]
[359188490,1745791900199,157.76,0.0004,30]
[359188491,1745791900647,466.194459,0.00037811,49]
[359188492,1745791900933,466.194459,0.00037799,49]
[359188493,1745791901225,466.194459,0.00037786,49]
[359188494,1745791901671,466.194459,0.00037774,49]
[359188495,1745791901950,466.194459,0.00037762,49]
[359188496,1745791917438,164.268056,0.0002,5]
[359188497,1745791973535,-298.82909971,0.00019375,2]
[359188498,1745791978776,-560.04579728,0.00019375,2]
[359188499,1745791980505,250.0,0.00017,2]
[359188500,1745791981578,300.0,0.00019,2]
[359188501,1745791981971,1224.22,0.00017428,2]
[359188502,1745791989572,-141.12510301,0.00019375,2]
[359188503,1745792189916,1000.0,0.00041096,30]
[359188504,1745792228647,1149.0,0.00041096,30]
[359188505,1745792250926,160.08,0.00019278,2]
[359188506,1745792251674,1000.0,0.0004109,30]
[359188507,1745792253308,1000.0,0.0004109,30]
[359188508,1745792254380,1000.0,0.0004109,30]
[359188509,1745792264203,1000.0,0.0004109,30]
[359188510,1745792266584,1000.0,0.0004109,30]
[359188511,1745792288016,500.0,0.0004109,30]
[359188512,1745792290854,500.0,0.0004109,30]
[359188513,1745792295341,500.0,0.0004109,30]
[359188514,1745792308581,693.0,0.0004109,30]
[359188515,1745792312758,202.277989,0.00041,30]
[359188516,1745792315395,202.277989,0.00038552,60]
[359188517,1745792315665,202.277989,0.00036,60]
[359188518,1745792315924,202.277989,0.0002,5]
[359188519,1745792316206,202.277989,0.0002,5]
[359188520,1745792316484,202.277989,0.0002,5]
[359188521,1745792316781,202.277989,0.00019999,5]
[359188522,1745792317071,202.277989,0.00019999,5]
[359188523,1745792317358,202.277989,0.00037811,49]
[359188524,1745792317633,202.277989,0.00037802,49]
[359188525,1745792317904,202.277989,0.00037792,49]
[359188526,1745792318190,202.277989,0.00037783,49]
[359188527,1745792318226,250.0,0.0004109,30]
[359188528,1745792318635,202.277989,0.00037774,49]
[359188529,1745792320333,250.0,0.0004109,30]
[359188530,1745792328492,250.0,0.0004109,30]
[359188531,1745792330129,250.0,0.0004109,30]
[359188533,1745792365351,500.06,0.00041096,30]
[359188534,1745792384404,500.0,0.00041096,30]
[359188535,1745792406889,23900.0,0.00019297,2]
[359188536,1745792520962,437.3,0.00041096,30]
[359188537,1745792521440,1000.0,0.00041096,30]
[359188538,1745792539658,500.0,0.00041096,30]
[359188539,1745792551510,500.0,0.00041096,30]
[359188540,1745792726544,1500.0,0.00032877,120]
[359188541,1745792756229,333.83,0.00041095,120]
[359188543,1745792801412,157.76,0.0004,30]
[359188544,1745792814823,2061.34102337,0.0004109,30]
[359188545,1745792845964,235.45,0.00019056,2]
[359188546,1745792894700,400.54757637,0.000135,2]
[359188547,1745792897198,200.0,0.00019114,2]
[359188548,1745792926346,10000.0,0.00041,120]
[359188549,1745792952497,150.83,0.00019217,2]
[359188550,1745792953181,150.83,0.00025623,120]
[359188551,1745792953398,150.83,0.00028825,120]
[359188553,1745793017549,277.11,0.00019219,2]
[359188558,1745793032396,-1224.22,0.00019692,2]
[359188559,1745793032406,-200.0,0.00019695,2]
[359188560,1745793032419,-250.0,0.00019698,2]
[359188561,1745793032429,-200.0,0.00019698,2]
[359188562,1745793032438,-469.04283445,0.000198,2]
[359188563,1745793032447,-300.0,0.00019899,2]
[359188564,1745793032457,-1200.0,0.00019899,2]
[359188565,1745793032467,-366.0,0.00019899,2]
[359188566,1745793032479,-500.0,0.00019899,2]
[359188567,1745793032488,-500.0,0.00019899,2]
[359188568,1745793032497,-50.30599399,0.00019899,2]
[359188569,1745793032509,-470.82430525,0.00019899,2]
[359188570,1745793032519,-150.99,0.000199,2]
[359188571,1745793032530,-692.47,0.000199,2]
[359188572,1745793032540,-2643.7,0.000199,2]
[359188573,1745793032550,-333.27,0.000199,2]
[359188574,1745793032559,-4201.97,0.000199,2]
[359188575,1745793032570,-872.96824777,0.000199,2]
[359188576,1745793032582,-127.02175223,0.000199,2]
[359188577,1745793032592,-2157.84709045,0.000199,2]
[359188578,1745793032603,-2398.86290955,0.000199,2]
[359188579,1745793032613,-6986.66503045,0.000199,2]
[359188679,1745793038264,-157.95444166,0.00019899,2]
[359188680,1745793038274,-2361.13100077,0.000199,2]
[359188681,1745793038324,-157.95444164,0.00019899,2]
[359188682,1745793038336,-344.64573672,0.000199,2]
[359188683,1745793038349,-307.54823206,0.000199,2]
[359188684,1745793038359,-486.21,0.000199,2]
[359188685,1745793038368,-1403.4,0.000199,2]
[359188686,1745793038378,-1239.15,0.000199,2]
[359188687,1745793038389,-9999.99,0.000199,2]
[359188688,1745793038400,-388.7,0.000199,2]
[359188689,1745793038410,-1376.5,0.000199,2]
[359188690,1745793038420,-423.38,0.000199,2]
[359188691,1745793038429,-150.99,0.000199,2]
[359188692,1745793038441,-8755.68282905,0.000199,2]
[359188693,1745793038457,-1244.30717095,0.000199,2]
[359188694,1745793038469,-9279.08,0.000199,2]
[359188695,1745793038479,-12500.0,0.000199,2]
[359188696,1745793038489,-2000.0,0.000199,2]
[359188697,1745793038498,-16710.1184,0.000199,2]
[359188698,1745793038509,-5000.0,0.000199,2]
[359188699,1745793038519,-168.56609644,0.000199,2]
[359188700,1745793038529,-1000.0,0.000199,2]
[359188701,1745793038542,-809.66869919,0.000199,2]
[359188702,1745793038552,-531.492,0.00019985,2]
[359188703,1745793038563,-2264.28422653,0.00019986,2]
[359188705,1745793038575,-779.54,0.00019986,2]
[359188707,1745793038586,-1103.78704119,0.00019986,2]
[359188710,1745793038598,-403.3,0.00019986,2]
[359188823,1745793040423,-972.89010449,0.00019986,2]
[359188824,1745793040437,-1164.40000008,0.00019986,2]
[359188825,1745793040490,-1105.0,0.00019986,2]
[359188826,1745793040558,-6162.73586877,0.00019986,2]
[359188827,1745793040570,-340.68831264,0.00019986,2]
[359188828,1745793040619,-2239.99555988,0.00019986,2]
[359188829,1745793040631,-333.81892786,0.00019986,2]
[359188830,1745793040643,-13637.48431616,0.00019986,2]
[359188831,1745793040652,-1468.937567,0.00019986,2]
[359188832,1745793040662,-2446.5675533,0.00019986,2]
[359188833,1745793040672,-19800.89598695,0.00019986,2]
[359188834,1745793040683,-934.74401295,0.00019986,2]
[359188835,1745793040693,-300.0,0.00019999,2]
[359188836,1745793040703,-75.55446084,0.0002,2]
[359188837,1745793040714,-4476.92603198,0.0002,2]
[359188838,1745793040723,-292.183,0.0002,2]
[359188839,1745793040733,-574.655,0.0002,2]
[359188840,1745793040743,-36109.96706876,0.0002,2]
[359188841,1745793040754,-1686.48452395,0.0002,2]
[359188842,1745793040908,-475.00005865,0.0002,2]
[359188858,1745793043643,-157.95444164,0.00019899,2]
[359188859,1745793043653,-47222.94160175,0.0002,2]
[359188860,1745793043703,-85214.95502005,0.0002,2]
[359188861,1745793043766,-1928.94906015,0.0002,2]
[359188862,1745793043775,-27337.88936914,0.0002,2]